fUST/lending_fUST_20241203
["ID","MTS","AMOUNT","RATE_DAILY","PERIOD"]
[344008066,1733189141410,-500.0,0.000222,2]
[344008067,1733189141439,-500.0,0.000222,2]
[344008068,1733189141472,-500.0,0.000222,2]
[344008069,1733189141505,-500.0,0.000222,2]
[344008070,1733189141538,-500.0,0.000222,2]
[344008071,1733189141572,-500.0,0.000222,2]
[344008072,1733189141599,-500.0,0.000222,2]
[344008073,1733189141629,-500.0,0.000222,2]
[344008074,1733189141656,-500.0,0.000222,2]
[344008075,1733189141682,-647.56828913,0.000222,2]
[344008076,1733189141715,-500.0,0.000222,2]
[344008077,1733189141744,-500.0,0.000222,2]
[344008078,1733189141774,-500.0,0.000222,2]
[344008079,1733189141803,-500.0,0.000222,2]
[344008080,1733189141831,-500.0,0.000222,2]
[344008081,1733189141865,-500.0,0.000222,2]
[344008082,1733189141893,-500.0,0.000222,2]
[344008083,1733189141920,-500.0,0.000222,2]
[344008084,1733189141951,-500.0,0.000222,2]
[344008085,1733189141975,-142.51531869,0.000222,2]
[344008086,1733189160887,-300.0,0.00022199,2]
[344008087,1733189160913,-357.48468131,0.000222,2]
[344008088,1733189160936,-500.0,0.000222,2]
[344008089,1733189160960,-500.0,0.000222,2]
[344008090,1733189160982,-500.0,0.000222,2]
[344008091,1733189161005,-500.0,0.000222,2]
[344008092,1733189161030,-500.0,0.000222,2]
[344008093,1733189161054,-500.0,0.000222,2]
[344008094,1733189161081,-500.0,0.000222,2]
[344008095,1733189161105,-500.0,0.000222,2]
[344008096,1733189161129,-500.0,0.000222,2]
[344008097,1733189161152,-500.0,0.000222,2]
[344008098,1733189161175,-500.0,0.000222,2]
[344008099,1733189161199,-500.0,0.000222,2]
[344008100,1733189161222,-500.0,0.000222,2]
[344008101,1733189161244,-500.0,0.000222,2]
[344008102,1733189161267,-544.40720887,0.000222,2]
[344008103,1733189161289,-500.0,0.000222,2]
[344008104,1733189161311,-500.0,0.000222,2]
[344008105,1733189161337,-500.0,0.000222,2]
[344008106,1733189161361,-500.0,0.000222,2]
[344008107,1733189161384,-500.0,0.000222,2]
[344008108,1733189161408,-500.0,0.000222,2]
[344008109,1733189161431,-500.0,0.000222,2]
[344008110,1733189161455,-500.0,0.000222,2]
[344008111,1733189161479,-500.0,0.000222,2]
[344008112,1733189161503,-500.0,0.000222,2]
[344008113,1733189161526,-500.0,0.000222,2]
[344008114,1733189161548,-500.0,0.000222,2]
[344008115,1733189161572,-500.0,0.000222,2]
[344008116,1733189161597,-500.0,0.000222,2]
[344008117,1733189161619,-500.0,0.000222,2]
[344008118,1733189161642,-500.0,0.000222,2]
[344008119,1733189161665,-500.0,0.000222,2]
[344008120,1733189161687,-500.0,0.000222,2]
[344008121,1733189161709,-500.0,0.000222,2]
[344008122,1733189161732,-500.0,0.000222,2]
[344008123,1733189161755,-500.0,0.000222,2]
[344008124,1733189161776,-500.0,0.000222,2]
[344008125,1733189161801,-500.0,0.000222,2]
[344008126,1733189161823,-500.0,0.000222,2]
[344008127,1733189161848,-500.0,0.000222,2]
[344008128,1733189161873,-500.0,0.000222,2]
[344008129,1733189161895,-500.0,0.000222,2]
[344008130,1733189161918,-500.0,0.000222,2]
[344008131,1733189161946,-500.0,0.000222,2]
[344008132,1733189161970,-500.0,0.000222,2]
[344008133,1733189161994,-500.0,0.000222,2]
[344008134,1733189162016,-500.0,0.000222,2]
[344008135,1733189162039,-500.0,0.000222,2]
[344008136,1733189162063,-500.0,0.000222,2]
[344008137,1733189162090,-500.0,0.000222,2]
[344008138,1733189162113,-500.0,0.000222,2]
[344008139,1733189162136,-500.0,0.000222,2]
[344008140,1733189162159,-500.0,0.000222,2]
[344008141,1733189162182,-500.0,0.000222,2]
[344008142,1733189162205,-500.0,0.000222,2]
[344008143,1733189162227,-350.0,0.000222,2]
[344008144,1733189162249,-500.0,0.000222,2]
[344008145,1733189162271,-500.0,0.000222,2]
[344008146,1733189162294,-500.0,0.000222,2]
[344008147,1733189162317,-500.0,0.000222,2]
[344008148,1733189162341,-500.0,0.000222,2]
[344008149,1733189162364,-500.0,0.000222,2]
[344008150,1733189162474,-500.0,0.000222,2]
[344008151,1733189162499,-500.0,0.000222,2]
[344008152,1733189162523,-608.81634685,0.000222,2]
[344008153,1733189162545,-500.0,0.000222,2]
[344008154,1733189162569,-500.0,0.000222,2]
[344008155,1733189162596,-500.0,0.000222,2]
[344008156,1733189162620,-500.0,0.000222,2]
[344008157,1733189162646,-500.0,0.000222,2]
[344008158,1733189162668,-500.0,0.000222,2]
[344008159,1733189162691,-500.0,0.000222,2]
[344008160,1733189162713,-500.0,0.000222,2]
[344008161,1733189162735,-500.0,0.000222,2]
[344008162,1733189162755,-500.0,0.000222,2]
[344008163,1733189162776,-500.0,0.000222,2]
[344008164,1733189162797,-500.0,0.000222,2]
[344008165,1733189162818,-500.0,0.000222,2]
[344008166,1733189162840,-500.0,0.000222,2]
[344008167,1733189162865,-500.0,0.000222,2]
[344008168,1733189162888,-500.0,0.000222,2]
[344008169,1733189162910,-483.37093009,0.000222,2]
[344008170,1733189162932,-500.0,0.000222,2]
[344008171,1733189162955,-500.0,0.000222,2]
[344008172,1733189162977,-500.0,0.000222,2]
[344008173,1733189163000,-500.0,0.000222,2]
[344008174,1733189163023,-500.0,0.000222,2]
[344008175,1733189163048,-500.0,0.000222,2]
[344008176,1733189163071,-500.0,0.000222,2]
[344008177,1733189163098,-500.0,0.000222,2]
[344008178,1733189163121,-500.0,0.000222,2]
[344008179,1733189163145,-500.0,0.000222,2]
[344008180,1733189163168,-500.0,0.000222,2]
[344008181,1733189163191,-500.0,0.000222,2]
[344008182,1733189163213,-500.0,0.000222,2]
[344008183,1733189163236,-500.0,0.000222,2]
[344008184,1733189163261,-500.0,0.000222,2]
[344008185,1733189163285,-500.0,0.000222,2]
[344008186,1733189163308,-500.0,0.000222,2]
[344008187,1733189163333,-500.0,0.000222,2]
[344008188,1733189163359,-600.0,0.000222,2]
[344008189,1733189163383,-500.0,0.000222,2]
[344008190,1733189163409,-500.0,0.000222,2]
[344008191,1733189163435,-500.0,0.000222,2]
[344008192,1733189163460,-500.0,0.000222,2]
[344008193,1733189163485,-500.0,0.000222,2]
[344008194,1733189163508,-1132.24987253,0.00022201,2]
[344008195,1733189163532,-171.86360082,0.00022273,2]
[344008196,1733189163559,-260.31507083,0.00022273,2]
[344008197,1733189163582,-501.6241701,0.00022273,2]
[344008198,1733189163605,-500.0,0.00022273,2]
[344008199,1733189163628,-345.10144811,0.00022273,2]
[344008200,1733189163650,-500.0,0.00022273,2]
[344008201,1733189163673,-513.63592441,0.00022273,2]
[344008202,1733189163695,-282.09399042,0.00022273,2]
[344008203,1733189163717,-260.58596398,0.00022273,2]
[344008204,1733189163739,-506.95754395,0.00022273,2]
[344008205,1733189163761,-500.0,0.00022273,2]
[344008206,1733189163784,-1132.24987253,0.00023862,2]
[344008207,1733189163806,-374.69376712,0.00024473,2]
[344008208,1733189163829,-179.960547,0.00024658,2]
[344008209,1733189163851,-224.70016235,0.00024658,2]
[344008210,1733189163877,-191.71,0.00025,2]
[344008211,1733189163899,-151.0,0.0002527,7]
[344008212,1733189163921,-160.0,0.00025271,2]
[344008213,1733189163946,-160.0,0.00025271,2]
[344008214,1733189163969,-160.0,0.00025271,2]
[344008215,1733189163991,-258.95858756,0.00025273,2]
[344008216,1733189164013,-201.39424095,0.00025273,2]
[344008217,1733189164037,-516.58117383,0.00025273,2]
[344008218,1733189164060,-512.02482558,0.00025273,2]
[344008219,1733189164085,-500.0,0.00025273,2]
[344008220,1733189164107,-500.30240615,0.00025273,2]
[344008221,1733189164131,-200.36868126,0.00025273,2]
[344008222,1733189164153,-250.0,0.00025273,2]
[344008223,1733189164175,-159.25060079,0.00025273,2]
[344008224,1733189164198,-334.0397932,0.00025273,2]
[344008225,1733189164220,-160.0,0.00025275,2]
[344008226,1733189164242,-160.0,0.00025275,2]
[344008227,1733189164264,-151.0,0.00025276,2]
[344008228,1733189164287,-228.900934,0.00025276,7]
[344008229,1733189164310,-150.0,0.00025394,2]
[344008230,1733189164333,-531.0,0.00025394,2]
[344008231,1733189164356,-2173.0,0.00025394,2]
[344008232,1733189164378,-2376.0,0.00025394,2]
[344008233,1733189164401,-1132.24987253,0.00025522,2]
[344008234,1733189164423,-170.134275,0.00025549,2]
[344008235,1733189164446,-151.0,0.00026237,2]
[344008236,1733189164469,-151.0,0.00026237,2]
[344008237,1733189164491,-162.627208,0.00026237,2]
[344008238,1733189164514,-228.900934,0.00026237,7]
[344008239,1733189164537,-228.900934,0.00026237,7]
[344008240,1733189164560,-228.900934,0.00026237,7]
[344008241,1733189164585,-228.900934,0.00026237,7]
[344008242,1733189164607,-228.900934,0.00026237,7]
[344008243,1733189164630,-228.900934,0.00026237,7]
[344008244,1733189164653,-228.900934,0.00026273,7]
[344008245,1733189164761,-228.900934,0.00026273,7]
[344008246,1733189164785,-155.0,0.00026283,2]
[344008247,1733189164808,-228.900934,0.00026312,7]
[344008248,1733189164835,-228.900934,0.00026312,7]
[344008249,1733189164862,-150.28,0.000265,2]
[344008250,1733189164884,-150.0,0.000265,2]
[344008251,1733189164909,-508.0077137,0.00026799,2]
[344008252,1733189164932,-73815.32467018,0.000268,2]
[344008254,1733189211101,-1169.27083333,0.0002,2]
[344008255,1733189211126,-300.0,0.00022199,2]
[344008256,1733189211147,-420.0,0.00024118,2]
[344008257,1733189211168,-420.0,0.00024419,2]
[344008258,1733189211188,-172.074174,0.00025432,2]
[344008259,1733189211209,-587.0,0.00026203,2]
[344008260,1733189211230,-7670.98043967,0.000268,2]
[344008262,1733189232148,-1169.27083333,0.0002,2]
[344008263,1733189232169,-17666.99777267,0.000268,2]
[344008264,1733189237100,-338.67180913,0.00026799,2]
[344008265,1733189237121,-76874.20415987,0.000268,2]
[344008266,1733189250111,-225.78120609,0.00026799,2]
[344008267,1733189250135,-334380.46495362,0.000268,2]
[344008268,1733189250159,-1132.24987253,0.00027183,2]
[344008269,1733189250182,-300.0,0.00027296,2]
[344008270,1733189250204,-300.0,0.00027296,2]
[344008271,1733189250226,-4960.52199376,0.00027297,2]
[344008272,1733189250256,-28039.47800624,0.00027297,2]
[344008273,1733189250279,-199.39874931,0.00027297,2]
[344008274,1733189250303,-497.40275251,0.00027297,2]
[344008275,1733189250324,-150.0,0.000273,2]
[344008276,1733189250346,-520.71302,0.000273,24]
[344008277,1733189250366,-200.0,0.0002737,21]
[344008278,1733189250388,-500.0,0.00027373,2]
[344008279,1733189250413,-500.0,0.00027373,2]
[344008280,1733189250434,-500.0,0.00027373,2]
[344008281,1733189250455,-500.0,0.00027373,2]
[344008282,1733189250476,-500.0,0.00027373,2]
[344008283,1733189250497,-501.49123751,0.00027373,2]
[344008284,1733189250518,-500.0,0.00027373,2]
[344008285,1733189250539,-500.0,0.00027373,2]
[344008286,1733189250561,-500.0,0.00027396,2]
[344008287,1733189250582,-500.0,0.00027396,2]
[344008288,1733189250604,-500.0,0.00027396,2]
[344008289,1733189250626,-500.0,0.00027396,2]
[344008290,1733189250647,-500.0,0.00027396,2]
[344008291,1733189250670,-500.0,0.00027396,2]
[344008292,1733189250692,-500.0,0.00027396,2]
[344008293,1733189250713,-500.0,0.00027396,2]
[344008294,1733189250735,-500.0,0.00027396,2]
[344008295,1733189250755,-189.44072089,0.00027396,2]
[344008296,1733189250777,-500.0,0.00027396,2]
[344008297,1733189250798,-500.0,0.00027396,2]
[344008298,1733189250819,-238.61869879,0.00027396,2]
[344008299,1733189250840,-293.33709301,0.00027396,2]
[344008300,1733189250863,-500.0,0.00027396,2]
[344008301,1733189250884,-500.0,0.00027396,2]
[344008302,1733189250910,-500.0,0.00027396,2]
[344008303,1733189250931,-500.0,0.00027396,2]
[344008304,1733189250954,-170.14517737,0.00027396,2]
[344008305,1733189250977,-500.0,0.00027396,2]
[344008306,1733189250998,-500.0,0.00027396,2]
[344008307,1733189251017,-500.0,0.00027397,7]
[344008308,1733189251037,-500.0,0.00027397,2]
[344008309,1733189251056,-500.80480071,0.00027397,2]
[344008310,1733189251077,-528.02,0.00027397,2]
[344008311,1733189251097,-500.0,0.00027397,7]
[344008312,1733189251118,-500.0,0.00027397,7]
[344008313,1733189251139,-500.0,0.00027397,7]
[344008314,1733189251164,-500.0,0.00027397,7]
[344008315,1733189251186,-500.0,0.00027397,7]
[344008316,1733189251207,-500.0,0.00027397,7]
[344008317,1733189251333,-500.0,0.00027397,7]
[344008318,1733189251354,-500.0,0.00027397,7]
[344008319,1733189251376,-500.0,0.00027397,7]
[344008320,1733189251397,-500.0,0.00027397,7]
[344008321,1733189251420,-500.0,0.00027397,7]
[344008322,1733189251441,-500.0,0.00027397,7]
[344008323,1733189251461,-500.0,0.00027397,7]
[344008324,1733189251482,-504.95625675,0.00027397,7]
[344008325,1733189251502,-500.0,0.00027397,7]
[344008326,1733189251522,-500.0,0.00027397,7]
[344008327,1733189251542,-500.0,0.00027397,7]
[344008328,1733189251562,-501.45371717,0.00027397,2]
[344008329,1733189251582,-500.0,0.00027397,7]
[344008330,1733189251604,-500.0,0.00027397,7]
[344008331,1733189251625,-500.0,0.00027397,7]
[344008332,1733189251646,-500.91096344,0.00027397,7]
[344008333,1733189251669,-500.0,0.00027397,7]
[344008334,1733189251690,-500.0,0.00027397,7]
[344008335,1733189251710,-500.0,0.00027397,7]
[344008336,1733189251730,-500.0,0.00027397,7]
[344008337,1733189251750,-500.0,0.00027397,7]
[344008338,1733189251770,-500.0,0.00027397,7]
[344008339,1733189251791,-685.55,0.00027397,7]
[344008340,1733189251812,-259.42785184,0.00027397,7]
[344008341,1733189251832,-500.0,0.00027397,7]
[344008342,1733189251852,-500.0,0.00027397,7]
[344008343,1733189251872,-712.86,0.00027397,7]
[344008344,1733189251896,-500.0,0.00027397,7]
[344008345,1733189251919,-572.69,0.00027397,7]
[344008346,1733189251941,-500.0,0.00027397,7]
[344008347,1733189251963,-500.0,0.00027397,7]
[344008348,1733189251983,-504.27983553,0.00027397,7]
[344008349,1733189252003,-571.84,0.00027397,7]
[344008350,1733189252023,-500.0,0.00027397,7]
[344008351,1733189252044,-1753.2,0.00027397,7]
[344008352,1733189252065,-500.0,0.00027397,7]
[344008353,1733189252085,-606.3336889,0.00027397,7]
[344008354,1733189252105,-500.0,0.00027397,7]
[344008355,1733189252125,-500.0,0.00027397,7]
[344008356,1733189252145,-500.0,0.00027397,7]
[344008357,1733189252168,-500.0,0.00027397,7]
[344008358,1733189252189,-632.07,0.00027397,7]
[344008359,1733189252210,-500.0,0.00027397,7]
[344008360,1733189252231,-1934.13,0.00027397,7]
[344008361,1733189252251,-478.2487139,0.00027397,7]
[344008362,1733189252272,-542.43,0.00027397,7]
[344008363,1733189252292,-500.0,0.00027397,7]
[344008364,1733189252314,-500.0,0.00027397,7]
[344008365,1733189252334,-500.0,0.00027397,7]
[344008366,1733189252355,-500.0,0.00027397,7]
[344008367,1733189252376,-500.0,0.00027397,7]
[344008368,1733189252396,-500.0,0.00027397,7]
[344008369,1733189252419,-500.0,0.00027397,7]
[344008370,1733189252441,-500.0,0.00027397,7]
[344008371,1733189252463,-276.92600202,0.00027397,7]
[344008372,1733189252483,-561.71,0.00027397,7]
[344008373,1733189252504,-580.67863706,0.00027397,7]
[344008374,1733189252526,-500.0,0.00027397,7]
[344008375,1733189252547,-500.0,0.00027397,7]
[344008376,1733189252572,-500.0,0.00027397,7]
[344008377,1733189252593,-500.0,0.00027397,7]
[344008378,1733189252615,-391.73038157,0.00027397,7]
[344008379,1733189252636,-500.0,0.00027397,7]
[344008380,1733189252663,-500.0,0.00027397,7]
[344008381,1733189252690,-500.0,0.00027397,7]
[344008382,1733189252712,-500.0,0.00027397,7]
[344008383,1733189252734,-500.0,0.00027397,7]
[344008384,1733189252755,-505.71579709,0.00027397,7]
[344008385,1733189252775,-600.86199656,0.00027397,7]
[344008386,1733189252795,-504.9668727,0.00027397,7]
[344008387,1733189252814,-500.0,0.00027397,7]
[344008388,1733189252833,-500.0,0.00027397,7]
[344008389,1733189252853,-500.0,0.00027397,7]
[344008390,1733189252871,-500.0,0.00027397,7]
[344008391,1733189252895,-500.0,0.00027397,7]
[344008392,1733189252920,-500.0,0.00027397,7]
[344008393,1733189252941,-503.31267002,0.00027397,2]
[344008394,1733189252961,-402.668421,0.00027397,7]
[344008395,1733189252981,-502.15146587,0.00027397,7]
[344008396,1733189253001,-500.0,0.00027397,7]
[344008397,1733189253025,-500.0,0.00027397,7]
[344008398,1733189253123,-500.0,0.00027397,7]
[344008399,1733189253143,-500.0,0.00027397,2]
[344008400,1733189253167,-500.0,0.00027397,7]
[344008401,1733189253188,-500.0,0.00027397,7]
[344008402,1733189253208,-500.0,0.00027397,7]
[344008403,1733189253230,-500.0,0.00027397,7]
[344008404,1733189253250,-500.0,0.00027397,7]
[344008405,1733189253272,-500.0,0.00027397,7]
[344008406,1733189253294,-500.0,0.00027397,7]
[344008407,1733189253317,-500.0,0.00027397,7]
[344008408,1733189253339,-500.0,0.00027397,7]
[344008409,1733189253363,-500.0,0.00027397,7]
[344008410,1733189253387,-500.0,0.00027397,7]
[344008411,1733189253414,-500.0,0.00027397,7]
[344008412,1733189253437,-500.0,0.00027397,7]
[344008413,1733189253461,-500.0,0.00027397,7]
[344008414,1733189253486,-500.0,0.00027397,7]
[344008415,1733189253509,-500.0,0.00027397,7]
[344008416,1733189253535,-500.0,0.00027397,7]
[344008417,1733189253560,-960.6,0.00027397,7]
[344008418,1733189253584,-343.15470664,0.00027397,7]
[344008419,1733189253609,-185.89303739,0.00027397,7]
[344008420,1733189253636,-500.0,0.00027397,7]
[344008421,1733189253662,-500.0,0.00027397,7]
[344008422,1733189253688,-228.60545249,0.00027397,7]
[344008423,1733189253712,-202.29251627,0.00027397,7]
[344008424,1733189253739,-500.0,0.00027397,7]
[344008425,1733189253764,-6496.03085645,0.00027397,7]
[344008426,1733189254064,-369.08914355,0.00027397,7]
[344008427,1733189254089,-500.0,0.00027397,7]
[344008428,1733189254113,-500.0,0.00027397,7]
[344008429,1733189254136,-505.29174255,0.00027397,7]
[344008430,1733189254163,-500.0,0.00027397,7]
[344008431,1733189254187,-500.0,0.00027397,7]
[344008432,1733189254211,-500.0,0.00027397,7]
[344008433,1733189254235,-500.0,0.00027397,7]
[344008434,1733189254259,-500.0,0.00027397,7]
[344008435,1733189254282,-500.0,0.00027397,7]
[344008436,1733189254315,-500.0,0.00027397,7]
[344008437,1733189254339,-4603.37,0.00027397,7]
[344008438,1733189254363,-500.0,0.00027397,7]
[344008439,1733189254389,-509.4106277,0.00027397,7]
[344008440,1733189254420,-638.21,0.00027397,7]
[344008441,1733189254446,-877.06,0.00027397,7]
[344008442,1733189254470,-616.9330693,0.00027397,7]
[344008443,1733189254494,-500.0,0.00027397,7]
[344008444,1733189254518,-500.0,0.00027397,7]
[344008445,1733189254541,-500.0,0.00027397,7]
[344008446,1733189254565,-500.0,0.00027397,7]
[344008447,1733189254589,-500.0,0.00027397,7]
[344008448,1733189254613,-514.70045522,0.00027397,7]
[344008449,1733189254637,-500.0,0.00027397,7]
[344008450,1733189254668,-500.0,0.00027397,7]
[344008451,1733189254692,-500.0,0.00027397,7]
[344008452,1733189254716,-1803.67,0.00027397,7]
[344008453,1733189254739,-500.0,0.00027397,7]
[344008454,1733189254763,-500.0,0.00027397,7]
[344008455,1733189254786,-683.5,0.00027397,7]
[344008456,1733189254811,-500.0,0.00027397,7]
[344008457,1733189254835,-500.0,0.00027397,7]
[344008458,1733189254859,-500.0,0.00027397,7]
[344008459,1733189254882,-507.92875543,0.00027397,7]
[344008460,1733189254915,-500.0,0.00027397,7]
[344008461,1733189254936,-500.0,0.00027397,7]
[344008462,1733189254958,-277.28467048,0.00027397,7]
[344008463,1733189254981,-558.4,0.00027397,7]
[344008464,1733189255076,-500.0,0.00027397,7]
[344008465,1733189255097,-1015.43,0.00027397,7]
[344008466,1733189255119,-500.0,0.00027397,7]
[344008467,1733189255141,-500.0,0.00027397,7]
[344008468,1733189255165,-501.55318212,0.00027397,7]
[344008469,1733189255187,-500.0,0.00027397,7]
[344008470,1733189255207,-500.0,0.00027397,7]
[344008471,1733189255230,-380.0,0.00027397,7]
[344008472,1733189255251,-500.0,0.00027397,7]
[344008473,1733189255272,-500.0,0.00027397,7]
[344008474,1733189255292,-179.45274643,0.00027397,7]
[344008475,1733189255312,-500.0,0.00027397,7]
[344008476,1733189255333,-417.04461816,0.00027397,7]
[344008477,1733189255353,-513.27182886,0.00027397,7]
[344008478,1733189255373,-2281.8,0.00027397,7]
[344008479,1733189255394,-500.0,0.00027397,7]
[344008480,1733189255420,-500.0,0.00027397,7]
[344008481,1733189255443,-500.0,0.00027397,7]
[344008482,1733189255465,-368.30514887,0.00027397,7]
[344008483,1733189255486,-500.0,0.00027397,7]
[344008484,1733189255507,-1169.27083333,0.00027397,7]
[344008485,1733189255530,-1169.27083333,0.00027397,7]
[344008486,1733189255552,-1169.27083333,0.00027397,7]
[344008487,1733189255573,-3955.57992609,0.00027495,2]
[344008488,1733189255595,-155.784346,0.000275,12]
[344008489,1733189255615,-497.4027525,0.00027573,2]
[344008490,1733189255635,-1300.000001,0.0002758,2]
[344008491,1733189255658,-153.0,0.00027616,30]
[344008492,1733189255678,-1000.0,0.00027641,2]
[344008493,1733189255699,-1000.0,0.00027649,2]
[344008494,1733189255720,-1000.0,0.00027656,2]
[344008495,1733189255740,-1000.0,0.00027666,2]
[344008496,1733189255761,-160.0,0.0002767,10]
[344008497,1733189255782,-195.92874234,0.0002767,2]
[344008498,1733189255802,-181.89839953,0.0002767,2]
[344008499,1733189255823,-537.48379727,0.0002767,2]
[344008500,1733189255844,-183.33885617,0.0002767,2]
[344008501,1733189255864,-468.36529264,0.00027671,7]
[344008502,1733189255888,-528.02,0.00027671,2]
[344008503,1733189255914,-500.0,0.00027671,7]
[344008504,1733189255940,-494.60608743,0.00027671,7]
[344008505,1733189255962,-500.0,0.00027671,7]
[344008506,1733189255983,-635.78322428,0.00027671,7]
[344008507,1733189256005,-500.0,0.00027671,7]
[344008508,1733189256027,-185.71611984,0.00027671,7]
[344008509,1733189256053,-500.0,0.00027671,7]
[344008510,1733189256079,-502.0514544,0.00027671,7]
[344008511,1733189256114,-500.0,0.00027671,7]
[344008512,1733189256136,-500.0,0.00027671,7]
[344008513,1733189256165,-502.20709717,0.00027671,7]
[344008514,1733189256196,-500.0,0.00027671,10]
[344008515,1733189256219,-500.0,0.00027671,7]
[344008516,1733189256241,-500.0,0.00027671,7]
[344008517,1733189256263,-500.0,0.00027671,7]
[344008518,1733189256284,-500.0,0.00027671,7]
[344008519,1733189256305,-500.0,0.00027671,7]
[344008520,1733189256326,-500.0,0.00027671,7]
[344008521,1733189256348,-500.0,0.00027671,7]
[344008522,1733189256369,-500.0,0.00027671,7]
[344008523,1733189256390,-500.0,0.00027671,7]
[344008524,1733189256417,-500.0,0.00027671,7]
[344008525,1733189256443,-500.0,0.00027671,7]
[344008526,1733189256465,-327.27079228,0.00027671,7]
[344008527,1733189256488,-712.86,0.00027671,7]
[344008528,1733189256511,-511.67775456,0.00027671,7]
[344008529,1733189256535,-509.37750368,0.00027671,7]
[344008530,1733189256567,-572.69,0.00027671,7]
[344008531,1733189256590,-500.0,0.00027671,7]
[344008532,1733189256612,-500.0,0.00027671,10]
[344008533,1733189256634,-571.84,0.00027671,7]
[344008534,1733189256663,-1753.2,0.00027671,7]
[344008535,1733189256685,-500.0,0.00027671,7]
[344008536,1733189256707,-500.0,0.00027671,7]
[344008537,1733189256728,-500.0,0.00027671,7]
[344008538,1733189256819,-500.0,0.00027671,7]
[344008539,1733189256843,-500.0,0.00027671,7]
[344008540,1733189256864,-500.0,0.00027671,7]
[344008541,1733189256886,-1934.13,0.00027671,7]
[344008542,1733189256915,-542.43,0.00027671,7]
[344008543,1733189256936,-500.0,0.00027671,7]
[344008544,1733189256958,-500.0,0.00027671,7]
[344008545,1733189256980,-500.0,0.00027671,7]
[344008546,1733189257003,-259.19824084,0.00027671,7]
[344008547,1733189257025,-500.0,0.00027671,7]
[344008548,1733189257048,-500.0,0.00027671,7]
[344008549,1733189257070,-348.19184967,0.00027671,7]
[344008550,1733189257093,-500.0,0.00027671,7]
[344008551,1733189257117,-561.71,0.00027671,7]
[344008552,1733189257139,-500.0,0.00027671,7]
[344008553,1733189257165,-500.0,0.00027671,7]
[344008554,1733189257186,-500.0,0.00027671,7]
[344008555,1733189257208,-306.4261579,0.00027671,7]
[344008556,1733189257229,-500.0,0.00027671,7]
[344008557,1733189257251,-500.0,0.00027671,7]
[344008558,1733189257274,-500.0,0.00027671,7]
[344008559,1733189257297,-500.0,0.00027671,7]
[344008560,1733189257319,-500.0,0.00027671,7]
[344008561,1733189257341,-500.0,0.00027671,7]
[344008562,1733189257363,-500.0,0.00027671,7]
[344008563,1733189257385,-500.0,0.00027671,7]
[344008564,1733189257410,-500.0,0.00027671,7]
[344008565,1733189257433,-500.0,0.00027671,7]
[344008566,1733189257456,-500.0,0.00027671,7]
[344008567,1733189257479,-500.0,0.00027671,7]